[Event "Championnat d'Europe Rapide"]
[Date "2024.12.07"]
[White "Uruci, Endrit"]
[Black "Livaic, Leon"]
[WhiteElo "2328"]
[BlackElo "2560"]
[Round "4.17"]
[Result "1/2-1/2"]
[TimeControl "900+10"]

1. e4 {[%clk 00:15:18]} d6 {[%emt 00:00:05] [%clk 00:15:18]} 2. d4 {[%emt
00:00:02] [%clk 00:15:23]} Nf6 {[%emt 00:00:02] [%clk 00:15:25]} 3. Nc3 {[%emt
00:00:03] [%clk 00:15:31]} e5 {[%emt 00:00:02] [%clk 00:15:33]} 4. dxe5 {[%emt
00:00:03] [%clk 00:15:38]} dxe5 {[%clk 00:15:42]} 5. Qxd8+ {[%emt 00:00:02]
[%clk 00:15:46]} Kxd8 {[%emt 00:00:01] [%clk 00:15:51]} 6. Bc4 {[%emt 00:00:02]
[%clk 00:15:53]} Ke8 {[%emt 00:00:02] [%clk 00:16:00]} 7. Nge2 {[%emt 00:00:26]
[%clk 00:15:36]} c6 {[%emt 00:00:21] [%clk 00:15:50]} 8. Bg5 {[%emt 00:00:29]
[%clk 00:15:16]} Nbd7 {[%emt 00:00:52] [%clk 00:15:10]} 9. a4 {[%emt 00:00:42]
[%clk 00:14:43]} a5 {[%emt 00:00:13] [%clk 00:15:07]} 10. f3 {[%emt 00:00:16]
[%clk 00:14:37]} Nb6 {[%emt 00:01:07] [%clk 00:14:10]} 11. Bb3 {[%emt 00:00:11]
[%clk 00:14:36]} Nfd7 {[%emt 00:00:09] [%clk 00:14:11]} 12. O-O-O {[%emt
00:00:28] [%clk 00:14:18]} Be7 {[%emt 00:00:36] [%clk 00:13:45]} 13. Be3 {[%emt
00:00:09] [%clk 00:14:18]} Bc5 {[%emt 00:00:04] [%clk 00:13:52]} 14. Bxc5 {[%emt
00:01:06] [%clk 00:13:23]} Nxc5 {[%emt 00:00:01] [%clk 00:14:00]} 15. Kb1 {[%emt
00:00:02] [%clk 00:13:31]} Ke7 {[%emt 00:00:36] [%clk 00:13:34]} 16. Nc1 {[%emt
00:00:05] [%clk 00:13:36]} Be6 {[%emt 00:01:16] [%clk 00:12:28]} 17. Bxe6 {[%emt
00:00:02] [%clk 00:13:43]} Kxe6 {[%emt 00:00:02] [%clk 00:12:37]} 18. b3 {[%emt
00:00:03] [%clk 00:13:50]} g6 {[%emt 00:00:21] [%clk 00:12:26]} 19. Nd3 {[%emt
00:00:20] [%clk 00:13:40]} Nxd3 {[%emt 00:00:55] [%clk 00:11:41]} 20. Rxd3
{[%emt 00:00:06] [%clk 00:13:44]} Rhd8 {[%emt 00:00:03] [%clk 00:11:48]} 21.
Rhd1 {[%emt 00:00:07] [%clk 00:13:46]} Rxd3 {[%emt 00:00:03] [%clk 00:11:56]}
22. Rxd3 {[%clk 00:13:55]} Nd7 {[%emt 00:00:09] [%clk 00:11:57]} 23. Kc1 {[%emt
00:01:41] [%clk 00:12:24]} Nc5 {[%emt 00:00:06] [%clk 00:12:01]} 24. Rd1 {[%emt
00:00:01] [%clk 00:12:32]} f5 {[%emt 00:00:19] [%clk 00:11:53]} 25. Kd2 {[%emt
00:00:19] [%clk 00:12:24]} f4 {[%emt 00:00:56] [%clk 00:11:07]} 26. Ne2 {[%emt
00:00:58] [%clk 00:11:35]} g5 {[%emt 00:00:19] [%clk 00:10:58]} 27. Nc1 {[%emt
00:03:18] [%clk 00:08:27]} g4 {[%emt 00:01:43] [%clk 00:09:26]} 28. Ke2 {[%emt
00:00:45] [%clk 00:07:51]} Rg8 {[%emt 00:01:16] [%clk 00:08:20]} 29. Nd3 {[%emt
00:00:10] [%clk 00:07:50]} Nxd3 {[%emt 00:01:06] [%clk 00:07:25]} 30. Rxd3
{[%emt 00:00:02] [%clk 00:07:58]} h5 {[%emt 00:00:09] [%clk 00:07:26]} 31. Kf1
{[%emt 00:02:17] [%clk 00:05:51]} gxf3 {[%emt 00:00:46] [%clk 00:06:50]} 32.
Rxf3 {[%emt 00:02:39] [%clk 00:03:22]} Rd8 {[%emt 00:00:22] [%clk 00:06:38]} 33.
g3 {[%emt 00:00:58] [%clk 00:02:34]} Rd1+ {[%emt 00:02:18] [%clk 00:04:30]} 34.
Ke2 {[%emt 00:00:02] [%clk 00:02:42]} Rh1 {[%emt 00:01:09] [%clk 00:03:31]} 35.
gxf4 {[%emt 00:00:58] [%clk 00:01:54]} Rxh2+ {[%emt 00:00:07] [%clk 00:03:35]}
36. Kd3 {[%clk 00:02:03]} exf4 {[%emt 00:02:37] [%clk 00:01:08]} 37. Rxf4 {[%emt
00:00:01] [%clk 00:02:11]} h4 {[%emt 00:00:03] [%clk 00:01:15]} 38. Rf5 {[%emt
00:00:23] [%clk 00:01:59]} b6 {[%emt 00:00:09] [%clk 00:01:15]} 39. Rh5 {[%emt
00:00:09] [%clk 00:01:59]} h3 {[%emt 00:00:26] [%clk 00:01:00]} 40. c3 {[%emt
00:00:39] [%clk 00:01:30]} Rh1 {[%emt 00:00:10] [%clk 00:00:59]} 41. Kd4 {[%emt
00:00:27] [%clk 00:01:14]} Kf6 {[%emt 00:00:28] [%clk 00:00:42]} 42. e5+ {[%emt
00:01:03] [%clk 00:00:20]} Kg6 {[%emt 00:00:17] [%clk 00:00:35]} 43. Rh8 {[%emt
00:00:02] [%clk 00:00:29]} Kf5 {[%emt 00:00:08] [%clk 00:00:36]} 44. Rf8+ {[%emt
00:00:14] [%clk 00:00:25]} Kg6 {[%emt 00:00:29] [%clk 00:00:17]} 45. e6 {[%emt
00:00:18] [%clk 00:00:18]} h2 {[%emt 00:00:12] [%clk 00:00:15]} 46. e7 {[%emt
00:00:07] [%clk 00:00:20]} Rd1+ {[%emt 00:00:05] [%clk 00:00:20]} 47. Kc4 {[%emt
00:00:05] [%clk 00:00:26]} Re1 {[%emt 00:00:14] [%clk 00:00:16]} 48. Rh8 {[%emt
00:00:02] [%clk 00:00:34]} Re4+ {[%emt 00:00:09] [%clk 00:00:16]} 49. Kd3 {[%emt
00:00:05] [%clk 00:00:40]} Rxe7 {[%clk 00:00:25]} 50. Rxh2 {[%emt 00:00:02]
[%clk 00:00:48]} 1/2-1/2

[Site "Europe Echecs"]

[Event "Championnat d'Europe Rapide"]
[Date "2024.12.07"]
[White "Kazakouski, Valery"]
[Black "Dobrikov, Marco"]
[WhiteElo "2567"]
[BlackElo "2407"]
[Round "4.18"]
[Result "1/2-1/2"]
[TimeControl "900+10"]

1. e4 {[%clk 00:15:18]} c5 {[%emt 00:00:07] [%clk 00:15:14]} 2. Nf3 {[%emt
00:00:02] [%clk 00:15:26]} d6 {[%emt 00:00:04] [%clk 00:15:23]} 3. d4 {[%emt
00:00:15] [%clk 00:15:18]} cxd4 {[%emt 00:00:02] [%clk 00:15:32]} 4. Nxd4 {[%emt
00:00:12] [%clk 00:15:15]} Nf6 {[%emt 00:00:03] [%clk 00:15:39]} 5. Nc3 {[%emt
00:00:02] [%clk 00:15:24]} a6 {[%clk 00:15:48]} 6. Bd3 {[%emt 00:00:19] [%clk
00:15:15]} e5 {[%emt 00:00:25] [%clk 00:15:32]} 7. Nde2 {[%emt 00:00:02] [%clk
00:15:23]} Be7 {[%emt 00:01:15] [%clk 00:14:27]} 8. Ng3 {[%emt 00:00:03] [%clk
00:15:30]} O-O {[%emt 00:00:26] [%clk 00:14:12]} 9. O-O {[%emt 00:00:09] [%clk
00:15:30]} Nc6 {[%emt 00:00:35] [%clk 00:13:47]} 10. Nd5 {[%emt 00:00:21] [%clk
00:15:18]} Nxd5 {[%emt 00:00:18] [%clk 00:13:40]} 11. exd5 {[%emt 00:00:02]
[%clk 00:15:27]} Nb8 {[%emt 00:00:06] [%clk 00:13:43]} 12. f4 {[%emt 00:00:12]
[%clk 00:15:24]} Nd7 {[%emt 00:00:50] [%clk 00:13:04]} 13. f5 {[%emt 00:01:04]
[%clk 00:14:30]} Bg5 {[%emt 00:01:46] [%clk 00:11:28]} 14. Bxg5 {[%emt 00:00:14]
[%clk 00:14:25]} Qxg5 {[%emt 00:00:02] [%clk 00:11:37]} 15. Ne4 {[%emt 00:00:01]
[%clk 00:14:34]} Qe7 {[%clk 00:11:46]} 16. f6 {[%emt 00:02:17] [%clk 00:12:28]}
Nxf6 {[%emt 00:00:01] [%clk 00:11:55]} 17. Nxf6+ {[%clk 00:12:37]} gxf6 {[%emt
00:00:01] [%clk 00:12:03]} 18. Qe1 {[%emt 00:00:24] [%clk 00:12:22]} f5 {[%emt
00:00:20] [%clk 00:11:55]} 19. Bxf5 {[%emt 00:00:13] [%clk 00:12:18]} Bxf5
{[%emt 00:00:02] [%clk 00:12:03]} 20. Rxf5 {[%emt 00:00:01] [%clk 00:12:26]} f6
{[%emt 00:00:39] [%clk 00:11:34]} 21. a4 {[%emt 00:00:52] [%clk 00:11:45]} Rf7
{[%emt 00:00:28] [%clk 00:11:16]} 22. Ra3 {[%emt 00:00:17] [%clk 00:11:38]} Rc8
{[%emt 00:00:13] [%clk 00:11:13]} 23. Qe2 {[%emt 00:00:06] [%clk 00:11:42]} Qc7
{[%emt 00:00:39] [%clk 00:10:45]} 24. Rf2 {[%emt 00:01:13] [%clk 00:10:38]} Kh8
{[%emt 00:00:52] [%clk 00:10:04]} 25. c4 {[%emt 00:03:40] [%clk 00:07:07]} Qc5
{[%emt 00:01:13] [%clk 00:09:01]} 26. h3 {[%emt 00:02:58] [%clk 00:04:20]} Qd4
{[%emt 00:01:03] [%clk 00:08:07]} 27. Rd3 {[%emt 00:00:40] [%clk 00:03:49]} Qb6
{[%emt 00:00:22] [%clk 00:07:54]} 28. b3 {[%emt 00:00:17] [%clk 00:03:45]} f5
{[%emt 00:00:07] [%clk 00:07:57]} 29. Kh2 {[%emt 00:00:04] [%clk 00:03:50]} a5
{[%emt 00:00:08] [%clk 00:07:59]} 30. Rg3 {[%emt 00:00:24] [%clk 00:03:36]} f4
{[%emt 00:00:13] [%clk 00:07:56]} 31. Rgf3 {[%emt 00:00:47] [%clk 00:02:59]} Rg8
{[%emt 00:00:08] [%clk 00:07:59]} 32. Qb2 {[%emt 00:00:05] [%clk 00:03:02]} Rfg7
{[%emt 00:00:10] [%clk 00:07:58]} 33. Rc2 {[%emt 00:00:08] [%clk 00:03:05]} Qc5
{[%emt 00:00:04] [%clk 00:08:05]} 34. Re2 {[%emt 00:00:24] [%clk 00:02:50]} b6
{[%emt 00:00:42] [%clk 00:07:34]} 35. Qa1 {[%emt 00:00:26] [%clk 00:02:34]} h5
{[%emt 00:00:31] [%clk 00:07:12]} 36. Qc3 {[%emt 00:00:27] [%clk 00:02:17]} Rg3
{[%emt 00:00:45] [%clk 00:06:37]} 37. Qd3 {[%emt 00:00:31] [%clk 00:01:57]} Qc8
{[%emt 00:00:07] [%clk 00:06:40]} 38. Qe4 {[%emt 00:00:54] [%clk 00:01:12]} h4
{[%emt 00:00:18] [%clk 00:06:32]} 39. Ref2 {[%emt 00:00:53] [%clk 00:00:30]} Qf8
{[%emt 00:00:12] [%clk 00:06:30]} 40. Kg1 {[%emt 00:00:08] [%clk 00:00:31]} R8g5
{[%emt 00:01:17] [%clk 00:05:23]} 41. Kf1 {[%emt 00:00:20] [%clk 00:00:21]} Qc8
{[%emt 00:01:08] [%clk 00:04:24]} 42. Rxg3 {[%emt 00:00:17] [%clk 00:00:15]}
hxg3 {[%emt 00:01:04] [%clk 00:03:30]} 43. Re2 {[%emt 00:00:07] [%clk 00:00:19]}
Kg7 {[%emt 00:00:11] [%clk 00:03:28]} 44. Qf3 {[%emt 00:00:12] [%clk 00:00:17]}
Qf5 {[%emt 00:00:22] [%clk 00:03:16]} 45. Re4 {[%clk 00:00:26]} Qc8 {[%emt
00:00:09] [%clk 00:03:16]} 46. Re1 {[%emt 00:00:19] [%clk 00:00:18]} Qc5 {[%emt
00:00:09] [%clk 00:03:17]} 47. Re4 {[%emt 00:00:10] [%clk 00:00:18]} Qa3 {[%emt
00:00:42] [%clk 00:02:45]} 48. Qc3 {[%emt 00:00:06] [%clk 00:00:22]} Kf7 {[%emt
00:00:15] [%clk 00:02:41]} 49. Re2 {[%emt 00:00:14] [%clk 00:00:17]} Rf5 {[%emt
00:00:03] [%clk 00:02:48]} 50. Qd3 {[%emt 00:00:03] [%clk 00:00:24]} Kf6 {[%emt
00:00:04] [%clk 00:02:54]} 51. Re1 {[%emt 00:00:07] [%clk 00:00:27]} Qb4 {[%emt
00:01:10] [%clk 00:01:54]} 52. Re2 {[%emt 00:00:09] [%clk 00:00:29]} Qc5 {[%clk
00:02:03]} 53. Qf3 {[%emt 00:00:03] [%clk 00:00:36]} Qd4 {[%emt 00:00:03] [%clk
00:02:08]} 54. Re4 {[%emt 00:00:14] [%clk 00:00:34]} Qd2 {[%emt 00:00:09] [%clk
00:02:08]} 55. Re2 {[%emt 00:00:14] [%clk 00:00:30]} Qd1+ {[%emt 00:00:45] [%clk
00:01:34]} 56. Re1 {[%emt 00:00:01] [%clk 00:00:39]} Qd4 {[%clk 00:01:43]} 57.
Re4 {[%emt 00:00:02] [%clk 00:00:47]} Qc5 {[%emt 00:00:01] [%clk 00:01:52]} 58.
Re1 {[%emt 00:00:12] [%clk 00:00:44]} Qb4 {[%emt 00:00:35] [%clk 00:01:27]} 59.
Re4 {[%emt 00:00:11] [%clk 00:00:43]} Rg5 {[%emt 00:00:24] [%clk 00:01:12]} 60.
Re2 {[%emt 00:00:13] [%clk 00:00:41]} Qa3 {[%emt 00:00:09] [%clk 00:01:12]} 61.
Re1 {[%emt 00:00:19] [%clk 00:00:34]} Qb2 {[%emt 00:00:05] [%clk 00:01:15]} 62.
Re2 {[%emt 00:00:04] [%clk 00:00:41]} Qd4 {[%emt 00:00:22] [%clk 00:01:03]} 63.
Re4 {[%emt 00:00:19] [%clk 00:00:33]} Qb2 {[%emt 00:00:32] [%clk 00:00:39]} 64.
Re2 {[%emt 00:00:03] [%clk 00:00:41]} Qb1+ {[%clk 00:00:49]} 65. Re1 {[%clk
00:00:50]} Qh7 {[%emt 00:00:15] [%clk 00:00:44]} 66. Re4 {[%emt 00:00:08] [%clk
00:00:52]} Qf5 {[%emt 00:00:25] [%clk 00:00:28]} 67. Ke2 {[%emt 00:00:15] [%clk
00:00:48]} Qc8 {[%emt 00:00:05] [%clk 00:00:33]} 68. Kf1 {[%emt 00:00:40] [%clk
00:00:19]} Qc5 {[%emt 00:00:01] [%clk 00:00:42]} 69. Re1 {[%emt 00:00:01] [%clk
00:00:27]} Qd4 {[%emt 00:00:28] [%clk 00:00:25]} 70. Re4 {[%emt 00:00:01] [%clk
00:00:36]} Qd2 {[%emt 00:00:09] [%clk 00:00:26]} 71. Re2 {[%emt 00:00:07] [%clk
00:00:39]} Qd1+ {[%emt 00:00:02] [%clk 00:00:34]} 72. Re1 {[%clk 00:00:48]}
Qxf3+ {[%emt 00:00:13] [%clk 00:00:31]} 73. gxf3 {[%clk 00:00:58]} Kg6 {[%emt
00:00:29] [%clk 00:00:13]} 1/2-1/2

[Site "Europe Echecs"]

[Event "Championnat d'Europe Rapide"]
[Date "2024.12.07"]
[White "Stojanovski, Dejan"]
[Black "Fedoseev, Vladimir"]
[WhiteElo "2407"]
[BlackElo "2709"]
[Round "4.19"]
[Result "1/2-1/2"]
[TimeControl "900+10"]

1. d4 {[%clk 00:15:19]} Nf6 {[%emt 00:00:15] [%clk 00:15:05]} 2. Nf3 {[%emt
00:00:01] [%clk 00:15:27]} e6 {[%emt 00:00:15] [%clk 00:15:01]} 3. Bg5 {[%emt
00:00:07] [%clk 00:15:30]} d5 {[%emt 00:00:13] [%clk 00:14:59]} 4. Nbd2 {[%emt
00:00:09] [%clk 00:15:30]} c5 {[%emt 00:00:20] [%clk 00:14:48]} 5. e3 {[%emt
00:00:21] [%clk 00:15:19]} h6 {[%emt 00:00:13] [%clk 00:14:46]} 6. Bh4 {[%emt
00:00:19] [%clk 00:15:09]} Nbd7 {[%emt 00:00:07] [%clk 00:14:49]} 7. c3 {[%emt
00:01:46] [%clk 00:13:34]} Bd6 {[%emt 00:00:04] [%clk 00:14:55]} 8. Bd3 {[%emt
00:00:40] [%clk 00:13:03]} O-O {[%emt 00:00:04] [%clk 00:15:01]} 9. O-O {[%emt
00:00:51] [%clk 00:12:22]} e5 {[%emt 00:00:18] [%clk 00:14:53]} 10. dxe5 {[%emt
00:01:15] [%clk 00:11:18]} Nxe5 {[%emt 00:00:03] [%clk 00:15:00]} 11. Nxe5
{[%emt 00:00:10] [%clk 00:11:18]} Bxe5 {[%emt 00:00:02] [%clk 00:15:08]} 12. e4
{[%emt 00:00:50] [%clk 00:10:38]} g5 {[%emt 00:03:13] [%clk 00:12:05]} 13. Bg3
{[%emt 00:00:04] [%clk 00:10:43]} Bxg3 {[%emt 00:00:17] [%clk 00:11:58]} 14.
hxg3 {[%emt 00:00:01] [%clk 00:10:52]} Bg4 {[%emt 00:01:53] [%clk 00:10:15]} 15.
Be2 {[%emt 00:02:20] [%clk 00:08:42]} Bxe2 {[%emt 00:02:04] [%clk 00:08:20]} 16.
Qxe2 {[%emt 00:00:01] [%clk 00:08:51]} Re8 {[%emt 00:01:04] [%clk 00:07:27]} 17.
e5 {[%emt 00:00:02] [%clk 00:08:59]} Ne4 {[%emt 00:00:03] [%clk 00:07:34]} 18.
Nxe4 {[%emt 00:00:42] [%clk 00:08:27]} Rxe5 {[%emt 00:00:02] [%clk 00:07:42]}
19. Qh5 {[%emt 00:01:21] [%clk 00:07:16]} dxe4 {[%emt 00:00:06] [%clk 00:07:46]}
20. Qxh6 {[%emt 00:00:01] [%clk 00:07:24]} Qf8 {[%emt 00:04:12] [%clk 00:03:45]}
21. Qxf8+ {[%emt 00:00:02] [%clk 00:07:32]} Kxf8 {[%emt 00:00:04] [%clk
00:03:51]} 22. Rfd1 {[%emt 00:00:02] [%clk 00:07:39]} Ke7 {[%emt 00:00:08] [%clk
00:03:54]} 23. Kf1 {[%emt 00:00:08] [%clk 00:07:40]} Rh8 {[%emt 00:00:31] [%clk
00:03:33]} 24. Ke2 {[%emt 00:00:20] [%clk 00:07:31]} Rh6 {[%emt 00:00:05] [%clk
00:03:37]} 25. c4 {[%emt 00:01:13] [%clk 00:06:28]} f5 {[%emt 00:00:47] [%clk
00:03:01]} 26. Rh1 {[%emt 00:00:10] [%clk 00:06:28]} Ree6 {[%emt 00:00:01] [%clk
00:03:10]} 27. Rad1 {[%emt 00:00:11] [%clk 00:06:28]} Rxh1 {[%emt 00:00:25]
[%clk 00:02:54]} 28. Rxh1 {[%clk 00:06:37]} Rb6 {[%emt 00:00:02] [%clk
00:03:03]} 29. b3 {[%emt 00:00:11] [%clk 00:06:35]} Ke6 {[%emt 00:00:40] [%clk
00:02:33]} 30. Rh5 {[%emt 00:01:48] [%clk 00:04:57]} Kf6 {[%emt 00:00:13] [%clk
00:02:30]} 31. Rh6+ {[%emt 00:00:04] [%clk 00:05:03]} Ke5 {[%emt 00:00:01] [%clk
00:02:39]} 32. Rxb6 {[%emt 00:01:04] [%clk 00:04:09]} axb6 {[%emt 00:00:01]
[%clk 00:02:48]} 33. Ke3 {[%clk 00:04:19]} f4+ {[%emt 00:00:13] [%clk 00:02:45]}
34. gxf4+ {[%emt 00:00:01] [%clk 00:04:28]} gxf4+ {[%emt 00:00:01] [%clk
00:02:52]} 35. Ke2 {[%clk 00:04:37]} Kf5 {[%emt 00:00:04] [%clk 00:03:00]} 36.
Kd2 {[%emt 00:00:24] [%clk 00:04:23]} Kg5 {[%emt 00:01:15] [%clk 00:01:55]} 37.
Ke2 {[%emt 00:00:11] [%clk 00:04:22]} Kh5 {[%emt 00:00:13] [%clk 00:01:52]} 38.
Kd2 {[%emt 00:00:03] [%clk 00:04:29]} Kh4 {[%emt 00:00:04] [%clk 00:01:57]} 39.
Ke2 {[%emt 00:00:07] [%clk 00:04:33]} Kg4 {[%emt 00:00:02] [%clk 00:02:04]} 40.
Kd2 {[%emt 00:00:06] [%clk 00:04:37]} Kf5 {[%emt 00:00:34] [%clk 00:01:40]} 41.
Ke2 {[%emt 00:00:02] [%clk 00:04:46]} Kg4 {[%emt 00:00:07] [%clk 00:01:43]} 42.
Kd2 {[%emt 00:00:04] [%clk 00:04:52]} Kf5 {[%emt 00:00:16] [%clk 00:01:37]}
1/2-1/2

[Site "Europe Echecs"]

[Event "Championnat d'Europe Rapide"]
[Date "2024.12.07"]
[White "Pacher, Milan"]
[Black "Ragger, Markus"]
[WhiteElo "2310"]
[BlackElo "2577"]
[Round "4.20"]
[Result "0-1"]
[TimeControl "900+10"]

1. c4 {[%clk 00:15:10]} c5 {[%emt 00:00:05] [%clk 00:15:15]} 2. Nc3 {[%emt
00:00:03] [%clk 00:15:27]} g6 {[%emt 00:00:15] [%clk 00:15:10]} 3. e3 {[%emt
00:00:13] [%clk 00:15:23]} Bg7 {[%emt 00:00:30] [%clk 00:14:51]} 4. d4 {[%emt
00:00:04] [%clk 00:15:29]} Nf6 {[%emt 00:00:01] [%clk 00:14:59]} 5. Nf3 {[%emt
00:00:05] [%clk 00:15:34]} cxd4 {[%emt 00:00:18] [%clk 00:14:52]} 6. exd4 {[%emt
00:00:01] [%clk 00:15:42]} d5 {[%emt 00:00:01] [%clk 00:15:02]} 7. Be2 {[%emt
00:00:46] [%clk 00:15:06]} O-O {[%emt 00:00:06] [%clk 00:15:05]} 8. O-O {[%emt
00:00:03] [%clk 00:15:13]} Nc6 {[%emt 00:00:07] [%clk 00:15:09]} 9. Be3 {[%emt
00:00:19] [%clk 00:15:04]} Bg4 {[%emt 00:00:23] [%clk 00:14:55]} 10. Ne5 {[%emt
00:03:59] [%clk 00:11:16]} Bxe2 {[%emt 00:00:27] [%clk 00:14:38]} 11. Qxe2
{[%emt 00:00:02] [%clk 00:11:24]} Rc8 {[%emt 00:00:23] [%clk 00:14:25]} 12. Nxc6
{[%emt 00:00:21] [%clk 00:11:13]} Rxc6 {[%emt 00:00:10] [%clk 00:14:25]} 13. c5
{[%emt 00:00:08] [%clk 00:11:15]} Re8 {[%emt 00:01:00] [%clk 00:13:35]} 14. b4
{[%emt 00:00:27] [%clk 00:10:57]} Qd7 {[%emt 00:00:45] [%clk 00:13:00]} 15. b5
{[%emt 00:00:44] [%clk 00:10:23]} Rcc8 {[%emt 00:00:03] [%clk 00:13:07]} 16. a4
{[%emt 00:00:04] [%clk 00:10:29]} Ng4 {[%emt 00:00:44] [%clk 00:12:33]} 17. Rad1
{[%emt 00:01:45] [%clk 00:08:53]} e5 {[%emt 00:00:38] [%clk 00:12:05]} 18. Qa2
{[%emt 00:01:39] [%clk 00:07:24]} Nxe3 {[%emt 00:03:41] [%clk 00:08:36]} 19.
fxe3 {[%emt 00:00:01] [%clk 00:07:32]} Rcd8 {[%emt 00:00:02] [%clk 00:08:45]}
20. Kh1 {[%emt 00:00:51] [%clk 00:06:49]} Qg4 {[%emt 00:01:45] [%clk 00:07:10]}
21. h3 {[%emt 00:01:45] [%clk 00:05:14]} Qg5 {[%emt 00:00:58] [%clk 00:06:23]}
22. c6 {[%emt 00:01:48] [%clk 00:03:36]} bxc6 {[%emt 00:00:07] [%clk 00:06:26]}
23. bxc6 {[%emt 00:00:01] [%clk 00:03:44]} exd4 {[%emt 00:00:18] [%clk
00:06:19]} 24. exd4 {[%emt 00:00:16] [%clk 00:03:38]} Rc8 {[%emt 00:00:17] [%clk
00:06:12]} 25. Nxd5 {[%emt 00:01:33] [%clk 00:02:15]} Rxc6 {[%emt 00:00:02]
[%clk 00:06:21]} 26. Rde1 {[%emt 00:00:14] [%clk 00:02:10]} Rxe1 {[%emt
00:00:31] [%clk 00:05:59]} 27. Rxe1 {[%emt 00:00:01] [%clk 00:02:19]} Rc1 {[%emt
00:00:05] [%clk 00:06:04]} 28. Ne7+ {[%emt 00:01:06] [%clk 00:01:23]} Kh8 {[%emt
00:00:14] [%clk 00:06:00]} 29. Qf2 {[%emt 00:00:17] [%clk 00:01:15]} Bf8 {[%emt
00:02:21] [%clk 00:03:50]} 30. d5 {[%emt 00:01:02] [%clk 00:00:23]} Rxe1+ {[%emt
00:00:08] [%clk 00:03:52]} 31. Qxe1 {[%emt 00:00:01] [%clk 00:00:31]} Qxe7
{[%emt 00:00:08] [%clk 00:03:55]} 0-1

[Site "Europe Echecs"]